Cogmind - Beta 12 @@@ ROGUE MODE // 2024.01.25 @ 20:15:01 Player: %41THX3142 Result: Destroyed by G-34 Mercenary with Small Laser Performance ------------- Evolutions (1) 500 Regions Visited (3) 600 Robots Destroyed (98) 490 Value Destroyed (2228) 2228 Prototype IDs (3) 60 Alien Tech Used (0) 0 Bonus (73) 73 TOTAL SCORE: 3951 Bonus ------- High Alert Combat Kills 73 Cogmind --------- Core Integrity 0/400 Matter 137/300 Energy 253/265 System Corruption 5% Temperature Cool (6) Movement Rolling (105) Ox1 Location -9/Storage Parts ------- > --- POWER (1) -------- Improved Ion Engine > --- PROPULSION (2) --- Armored Wheel Armored Wheel > --- UTILITY (4) ------ Large Storage Unit Signal Interpreter ECM Suite Propulsion Shielding > --- WEAPON (2) ------- Heavy EM Pulse Gun Cooled Plasma Cannon > --- INVENTORY (15) --- Ion Engine Wheel Large Battery Weight Redist. System Light Armor Plating Medium Laser Beam Rifle Particle Gun Particle Cannon Heavy Assault Rifle Heavy Assault Rifle Improved Assault Rifle Improved Assault Rifle Faulty Improved Assault Rifle Mini Grenade Launcher Peak State ------------ > --- POWER ------------ Improved Ion Engine > --- PROPULSION ------- Armored Wheel Armored Wheel > --- UTILITY ---------- Large Storage Unit Signal Interpreter ECM Suite Propulsion Shielding > --- WEAPON ----------- Cooled Plasma Cannon Heavy Assault Rifle > --- INVENTORY -------- Ion Engine Wheel Heat Sink Large Battery Weight Redist. System Heavy EM Pulse Gun Medium Laser Beam Rifle Particle Gun Particle Cannon Heavy Assault Rifle Improved Assault Rifle Improved Assault Rifle Improved Assault Rifle Grenade Launcher [Rating: 20] Favorites ----------- Power Light Ion Engine Engine Light Ion Engine Propulsion Armored Wheel Wheel Armored Wheel Utility Large Storage Unit Device Sensor Array Storage Large Storage Unit Processor Signal Interpreter Protection Propulsion Shielding Weapon Light Assault Rifle Energy Gun EM Pulse Gun Energy Cannon Cooled Plasma Cannon Ballistic Gun Light Assault Rifle Launcher Grenade Launcher Slashing Weapon Mining Claw Build | -11 -10 -9 -9 ------- Run | Jun Mat Mat Sto Slots Evolved 2 | . . 2 . Power . | . . . . Propulsion . | . . . . Utility 2 | . . 2 . Weapon . | . . . . Parts Attached 62 | 7 23 10 22 Power 11 | 1 3 2 5 Engine 11 | 1 3 2 5 Core . | . . . . Reactor . | . . . . Propulsion 10 | 3 5 . 2 Treads . | . . . . Leg . | . . . . Wheel 10 | 3 5 . 2 Hover . | . . . . Flight . | . . . . Utility 11 | 1 3 2 5 Device 2 | . . 1 1 Storage 2 | 1 1 . . Processor 1 | . . 1 . Hackware . | . . . . Protection 6 | . 2 . 4 Artifact . | . . . . Weapon 30 | 2 12 6 10 Energy Gun 6 | . 5 . 1 Energy Cannon 3 | . . 1 2 Ballistic Gun 7 | 2 2 1 2 Ballistic Cannon . | . . . . Launcher 11 | . 4 3 4 Special Weapon . | . . . . Impact Weapon . | . . . . Slashing Weapon 3 | . 1 1 1 Piercing Weapon . | . . . . Special Melee Weapon . | . . . . Unidentified Prototypes 1 | . . . 1 Parts Lost 12 | . 3 1 8 Power 3 | . 1 1 1 Propulsion 1 | . . . 1 Utility 4 | . . . 4 Weapon 4 | . 2 . 2 Highest Loss Streak 3 | . 1 1 3 To Critical Strikes . | . . . . Average Slot Usage (%) 96 | . 97 96 96 Engine 11 | . 13 8 11 Wheel 24 | . 27 22 21 Device 5 | . . 11 7 Storage 12 | . 14 11 11 Processor 6 | . . 11 11 Protection 12 | . 13 11 12 Energy Gun 3 | . 6 . 1 Energy Cannon 4 | . . 4 10 Ballistic Gun 12 | . 17 11 5 Launcher 4 | . 4 6 2 Naked Turns . | . . . . Heaviest Build 42 | 11 31 34 42 Greatest Support 26 | 26 24 24 24 Greatest Overweight (x) 2 | . 2 1 1 Average Overweight (x) . | . . 1 1 Largest Inventory Capacity 15 | 8 15 15 15 Average Capacity 14 | 7 14 15 15 Most Carried 15 | 5 15 15 15 Average Carried 12 | 2 10 14 14 Final Capacity 15 | 8 15 15 15 Final Carried 15 | 4 15 15 15 Class Distribution -------------------- 100% | Mutant Dominant Class ---------------- Mutant | -10/Materials Mutant | -9/Materials Mutant | -9/Storage Resources | -11 -10 -9 -9 ----------- Run | Jun Mat Mat Sto Matter Collected 1502 | 310 351 503 338 Remotely . | . . . . Salvage Created 2927 | 124 903 811 1089 Parts 202 | 9 54 63 76 Haulers Intercepted 8 | . 2 1 5 Recyclers Shooed 4 | 1 . 2 1 Parts Field Recycled . | . . . . Retrieved Matter . | . . . . Parts Self-Destructed . | . . . . Prevented . | . . . . Kills | -11 -10 -9 -9 ------- Run | Jun Mat Mat Sto Combat Hostiles Destroyed 56 | . 18 18 20 Guns 18 | . 10 5 3 Cannons 15 | . . 5 10 AOE 23 | . 8 8 7 Classes Destroyed 11 | 2 7 2 . Worker 12 | . 4 2 6 Builder 6 | . 5 . 1 Tunneler 5 | 3 1 1 . Hauler 8 | . 2 1 5 Recycler 4 | 1 1 1 1 Mechanic 1 | . 1 . . Operator 1 | . . 1 . Watcher 5 | . 3 1 1 Swarmer 6 | . 6 . . Grunt 40 | . 12 11 17 Sentry 10 | . . 7 3 Best Kill Streak 13 | 4 8 8 13 Combat Bots Only 6 | . 3 5 6 Max Kills in Single Turn 3 | 1 3 3 3 Gunslinging 1 | . 1 . . Exploded 2 | . 2 1 2 Melee . | . . . . Uniques/NPCs Destroyed . | . . . . Combat | -11 -10 -9 -9 -------- Run | Jun Mat Mat Sto Damage Taken 2111 | . 514 435 1162 Core 532 | . 129 164 239 Absorbed by Shields . | . . . . Redirected to Shielding 122 | . 27 15 80 Regen/Repaired (Parts) 162 | . 54 63 45 Core Remaining (%) 74 | 100 48 . . Volleys Fired 202 | 10 80 60 52 Largest 2 | 2 2 2 2 Hottest 91 | 40 60 91 80 Shots Fired 364 | 20 145 108 91 Gun 245 | 20 133 60 32 Cannon 77 | . . 33 44 Launcher 42 | . 12 15 15 Special . | . . . . Kinetic 197 | 20 89 60 28 Thermal 83 | . 6 33 44 Explosive 42 | . 12 15 15 Electromagnetic 42 | . 38 . 4 Robot Hit Streak 13 | 13 8 10 9 Robot Miss Streak 7 | 1 7 6 5 Penetration Max . | . . . . Secondary Targets 1 | . 1 . . Max Gunslinging Chain 1 | . 1 . . Shots Hit Robots 180 | 17 74 49 40 Core Hits 158 | 8 56 44 50 Critical Kills 1 | . 1 . . Critical Parts Destroyed 2 | . 1 . 1 Critical Strikes 4 | . 3 . 1 Destroy 3 | . 2 . 1 Corrupt 1 | . 1 . . Melee Attacks 21 | . . 1 20 Impact . | . . . . Slashing 21 | . . 1 20 Piercing . | . . . . Sneak Attacks . | . . . . Combat Hostiles . | . . . . Follow-up Attacks . | . . . . Damage Inflicted 5291 | 168 1469 1654 2000 Guns 1812 | 168 830 506 308 Cannons 1181 | . . 408 773 Explosions 2290 | . 639 732 919 Melee . | . . . . Ramming 8 | . . 8 . Kinetic 1386 | 168 451 506 261 Thermal 1331 | . 91 408 832 Explosive 2187 | . 595 732 860 Electromagnetic 379 | . 332 . 47 Impact . | . . . . Slashing . | . . . . Piercing . | . . . . Highest Corruption 5 | . 1 2 5 Average Corruption 2 | . 1 2 4 Corruption Purged . | . . . . Corruption Blocked . | . . . . Effects 24 | . 5 4 15 Message Errors 3 | . . 1 2 Matter Fused 7 | . 1 2 4 Heat Flow Errors 4 | . . . 4 Energy Discharges 3 | . 1 . 2 Parts Rejected 1 | . 1 . . Data Loss (minor) 2 | . 1 . 1 Data Loss (major) 1 | . . 1 . Misfires 1 | . 1 . . Alerts 1 | . . . 1 Weapon Failures 1 | . . . 1 Overload Shots . | . . . . Overflow Damage 44 | . 6 8 30 Projectiles 5 | . . . 5 Explosions 39 | . 6 8 25 Melee . | . . . . Knockbacks . | . . . . Impact . | . . . . Kinetic . | . . . . Secondary . | . . . . Self-Inflicted Damage 117 | . 12 18 87 Shots 6 | . 1 1 4 Rammed 1 | . . 1 . Targets Rammed 1 | . . 1 . Kicked . | . . . . Crushed . | . . . . Highest Temperature 216 | . 70 216 213 Average Temperature 57 | . 22 65 88 Received Heat Transfer 783 | . 231 189 363 Siege Activations . | . . . . Robots Corrupted . | . . . . Combat Hostiles . | . . . . Parts Fried 1 | . 1 . . Impact Corruptions . | . . . . Robots Melted . | . . . . Combat Hostiles . | . . . . Parts Melted 2 | . 1 1 . Heat Transferred 2190 | . 150 740 1300 Parts Sabotaged . | . . . . Parts Stolen . | . . . . Parts Stripped . | . . . . Power Chain Reactions 2 | . 1 . 1 Missiles Intercepted . | . . . . Alert | -11 -10 -9 -9 ------- Run | Jun Mat Mat Sto Peak Influence 508 | 20 391 508 477 Initial 131 | . 13 130 131 Average 220 | 8 169 283 267 Maximum Alert Level 2 | . 1 2 2 Low Security (%) 44 | 100 65 18 28 Level 1 46 | . 34 61 58 Level 2 8 | . . 20 12 Level 3 . | . . . . Level 4 . | . . . . Level 5 . | . . . . High Security . | . . . . Max Security . | . . . . Squads Dispatched 16 | . 5 4 7 Investigation 11 | . 4 1 6 Extermination . | . . . . Reinforcement 5 | . 1 3 1 Assault . | . . . . Garrison . | . . . . Intercept . | . . . . Searches Triggered . | . . . . Construction Impeded 1 | . . 1 . Haulers Reinforced . | . . . . Active Scanning Responses . | . . . . Cargo Convoy Interrupts . | . . . . Stealth | -11 -10 -9 -9 --------- Run | Jun Mat Mat Sto Distress Signals 7 | . 1 3 3 Communications Jammed . | . . . . Distress Signals . | . . . . Times Spotted 84 | . 29 27 28 Peak Tracking Total 5 | . 4 5 5 Tactical Retreats 4 | . 1 . 3 Traps | -11 -10 -9 -9 ------- Run | Jun Mat Mat Sto Traps Triggered 3 | . 1 1 1 Indirectly . | . . . . Trap Hack Attempts . | . . . . Triggered . | . . . . Disarmed . | . . . . Reprogrammed . | . . . . Reused . | . . . . Traps Extracted . | . . . . Installed . | . . . . Triggered . | . . . . Machines | -11 -10 -9 -9 ---------- Run | Jun Mat Mat Sto Machines Disabled 8 | . 5 2 1 Max in Single Turn 1 | . 1 1 1 Machines Repaired . | . . . . Machines Sabotaged . | . . . . Overloaded Fab Kills . | . . . . Hacking | -11 -10 -9 -9 --------- Run | Jun Mat Mat Sto Machines Accessed 24 | . 8 7 9 Terminals 18 | . 5 6 7 Fabricators . | . . . . Repair Stations 3 | . 1 1 1 Recycling Units 3 | . 2 . 1 Scanalyzers . | . . . . Garrison Access . | . . . . Total Hacks 79 | . 30 23 26 Successful 39 | . 19 10 10 Failed 40 | . 11 13 16 Catastrophic 12 | . 2 4 6 Database Lockouts . | . . . . Manual 41 | . 14 16 11 Terminals 57 | . 20 19 18 Fabricators . | . . . . Repair Stations 15 | . 6 4 5 Recycling Units 7 | . 4 . 3 Scanalyzers . | . . . . Garrison Access . | . . . . Terminal Hacks 23 | . 12 7 4 Robot Analysis 1 | . . 1 . Prototype ID Bank 1 | . 1 . . Open Door 1 | . . . 1 Level Access Points 1 | . 1 . . Branch Access Points 1 | . 1 . . Emergency Access Points 1 | . 1 . . Alert Level 9 | . 4 3 2 Unreport Threat 4 | . 1 2 1 Zone Layout 4 | . 3 1 . Fabricator Hacks . | . . . . Repair Station Hacks 11 | . 5 3 3 Scan Component 7 | . 3 2 2 Repair 4 | . 2 1 1 Recycling Unit Hacks 5 | . 2 . 3 Process 1 | . . . 1 Report Inventory 4 | . 2 . 2 Scanalyzer . | . . . . Garrison Access Hacks . | . . . . Unauthorized Hacks . | . . . . Terminals . | . . . . Fabricators . | . . . . Repair Stations . | . . . . Recycling Units . | . . . . Scanalyzers . | . . . . Garrison Access . | . . . . Data Cores Recovered . | . . . . Used . | . . . . Hacking Detections 22 | . 7 7 8 Full Trace Events 11 | . 4 2 5 Feedback Events . | . . . . Feedback Blocked . | . . . . Robot Schematics Acquired . | . . . . Robots Built . | . . . . Authchips . | . . . . Time . | . . . . Total Robot Build Rating . | . . . . Part Schematics Acquired . | . . . . Parts Built . | . . . . Authchips . | . . . . Time . | . . . . Total Part Build Rating . | . . . . Parts Repaired 4 | . 2 1 1 Time 116 | . 52 32 32 Parts Recycled . | . . . . Recycled Matter 392 | . . . 392 Retrieved Matter . | . . . . Retrieved Components . | . . . . Parts Scanalyzed . | . . . . Part Schematics Acquired . | . . . . Parts Damaged . | . . . . Bothacking | -11 -10 -9 -9 ------------ Run | Jun Mat Mat Sto Used RIF Installer . | . . . . Robots Hacked . | . . . . Non-combat . | . . . . Combat . | . . . . Robot Hacks Applied . | . . . . Relay Couplers Released . | . . . . Fabnet Peak Effective % . | . . . . Robots Rewired . | . . . . Allies Hacked . | . . . . Hacks Repelled . | . . . . Allies | -11 -10 -9 -9 -------- Run | Jun Mat Mat Sto Total Allies . | . . . . Largest Group . | . . . . Highest-Rated Group . | . . . . Highest-Rated Ally . | . . . . Total Orders . | . . . . Ally Attacks . | . . . . Total Damage . | . . . . Kills . | . . . . Allies Corrupted . | . . . . Allies Melted . | . . . . Intel | -11 -10 -9 -9 ------- Run | Jun Mat Mat Sto Robot Analysis Total 1 | . . 1 . Derelict Logs Recovered . | . . . . Drone Launches . | . . . . Drone Recoveries . | . . . . Exploration | -11 -10 -9 -9 ------------- Run | Jun Mat Mat Sto Turns Passed 2700 | 93 1169 784 654 Spaces Moved 1722 | 59 834 485 344 Core 3 | 3 . . . Treads . | . . . . Legs . | . . . . Wheels 1719 | 56 834 485 344 Hover . | . . . . Flight . | . . . . Fastest Speed 50 | 50 80 105 105 Average Speed 101 | 82 98 105 105 Slowest Speed 120 | 90 120 105 105 Overloaded Moves . | . . . . Propulsion Burnouts . | . . . . Robots Hopped . | . . . . Cave-ins Triggered 1 | . . . 1 Exploration Rate (%) 53 | 5 88 50 69 Regions Visited 3 Branch Regions 1 Pre-discovered Areas . | . . . . Known Exits Taken 2 | . 1 1 . Unknown Exits Taken 1 | 1 . . . Scrap Searched . | . . . . Spaces Dug 9 | . . 4 5 Terrain Destroyed 187 | . 20 97 70 Melee 5 | . . . 5 Projectile 13 | . . . 13 AOE 169 | . 20 97 52 Terrain Rammed . | . . . . Walls Destroyed . | . . . . Machines Disabled . | . . . . Actions | -11 -10 -9 -9 --------- Run | Jun Mat Mat Sto Total 2281 | 82 1045 652 502 Wait 206 | . 81 77 48 Move 1719 | 58 833 484 344 Hop . | . . . . Pick Up 41 | 5 17 10 9 Fast Attach 16 | 6 6 . 4 Attach 12 | . 2 3 7 Detach 1 | . 1 . . Swap 34 | 1 15 7 11 Drop 28 | 2 10 9 7 Fire 202 | 10 80 60 52 Melee 21 | . . 1 20 Ram 1 | . . 1 . Kick . | . . . . Crush . | . . . . Escape Stasis . | . . . . Rewire . | . . . . Trap . | . . . . Miscellaneous . | . . . . Route ------- -11/Junkyard -10/Materials (discovered 4 exits: *Mat x3 / *Min) -9/Materials (discovered 2 exits: [*Min] / *Sto) -9/Storage History --------- Turn | Location | Event 5 | -11/Junkyard | Discovered new exit (range 15) 94 | -11/Junkyard | Entered Materials 119 | -10/Materials | Identified exit to Materials 283 | -10/Materials | Identified exit to Mines 303 | -10/Materials | Build established: Mutant 321 | -10/Materials | Repaired Assault Rifle 349 | -10/Materials | Repaired Lgt. Ion Engine 1017 | -10/Materials | Core integrity fell below 50% 1263 | -10/Materials | Entered another Materials area 1263 | -9/Materials | Evolved 2 slots: Utility x2 1535 | -9/Materials | Repaired Hvy. Assault Rifle 1621 | -9/Materials | Discovered new exit (range 12) 1774 | -9/Materials | Discovered new exit (range 6) 2046 | -9/Materials | Identified exit to Storage 2047 | -9/Materials | Entered Storage 2166 | -9/Storage | Crushed by falling debris 2166 | -9/Storage | Core integrity fell below 50% 2197 | -9/Storage | Lost 3 parts (1p1n1w) 2359 | -9/Storage | Repaired Arm. Wheel 2433 | -9/Storage | Core integrity fell below 20% 2701 | -9/Storage | Destroyed by G-34 Mercenary with Small Laser Last Messages --------------- 02654_ R-06 Scavenger collects Lgt. Treads. 02654_ U-05 Engineer builds a Wall. 02655_ U-05 Engineer lays Concrete. 02655_ K-01 Serf collects debris. 02656_ U-05 Engineer lays Concrete. 02659_ U-05 Engineer builds a Door. 02660_ U-05 Engineer lays Concrete. 02661_ U-05 Engineer builds a Wall. 02663_ Connecting with Terminal... 02663_ ALERT: Suspicious activity at Terminal S011. Dispatching Investigation squad. 02664_ F9TVK%DTC 02692_ U-05 Engineer builds a Door. 02701_ W-16 Scout sends out distress signal. Map ----- +----------------------------------------------------+ | #######???????????????????????#= =% "???"" #?????? | | ??????????????????????????????#=[[#*""" #?????? | | ??????????????????????????????#==%#= #?????? | | ????????????????????????????#?# *# #?????? | | ????????????????????????????# # %##########?????? | | ######??#####???????????????# #%!=##?????????????? | | ] ]]]####"T"###?????????????# T=*!##?????????????? | | ]] ]]## !#?????????????### =[######?????????? | | [ ## #??????????????##!%[##T #?????????? | | [## """ #??????????????## [=+ #?????????? | | #" "### """ !#??????????######[ [# #?????????? | | T ## """ [##?????????# %=# #?????????? | | # ## * #?????????# !## #?????????? | | ## # ## """"" ##??????#### ##########?????? | | ## """"" #???????# # # ??????? | | ! + """"" #???????" # r # """"#?????? | | ! ## #???????" + # """"#?????? | | *# ## #???????" # %# """"#?????? | | # #####+#####??????#T## # """"#?????? | | + #??????#### %+ #?????? | | " # #????????## # #?????? | | " # """ #?????????# % # #?????? | | " # "Y" #??######## # #?????? | | + ########### ####" "###?????? | | ## ! % k #??#"R"#???????? | | ## @ % = #??#"""#???????? | | #+## ##+#####+####### % %!#??#####???????? | | # ### ##### ^ *#??????????????? | | # #?# #???# %==##?????????????? | | # #?#! #???# # #????????????? | | # #?# +??? k %###????????????? | | # ## #?# #???######w %##?????????????? | | # ## T##! ! ! #?????? %g##?????????????? | | # ## ### = = #??????# #?????????????? | | # #""""?# #???????## ##?????????????? | | # #?????###########????????? ??????????????? | | # #?????????????????????????? g?????????????? | | # #?????????????????????????? ???????????????? | | # #???????????????????????????????????????????? | | # #######?????????????????????????????????????? | | # #?????????????????????????????????????? | | # #?????????????????????????????????????? | | # #?????????????????????????????????????? | | ############?????????????????????????????????????? | | ?????????????????????????????????????????????????? | | ?????????????????????????????????????????????????? | | | | | | | | | +----------------------------------------------------+ Best States ------------- Heat Dissipation 28 Energy Generation 12 Energy Capacity 265 Matter Stores 300 Matter Capacity 300 Sight Range 16 Robot Scan Range 14 Terrain Scan Density 10 ECM Strength 1 Armor Coverage 150 Propulsion Shielding 33 Weapon Shielding 33 Evasion (%) 44 Item Schematics ----------------- None Robot Schematics ------------------ None Fabricated ------------ Nothing Alien Tech Used ----------------- None Achievements -------------- Unlikely Earthworm Challenges ------------ None Game ------ Seed LightpackGreatKinecellerator Manual? 0 Play Time 01:04:31 Cumulative 16.9 hours Start 2024.01.25 @ 19:13:30 End 2024.01.25 @ 20:15:01 Sessions 1 Manual Loads 0 Difficulty Rogue Special Mode None Game No. 7 Rogue 7 Adventurer 0 Explorer 0 Win Type - Total 0 Types 0/0/0/0/0/0/0/0/0 Lore% 12 Gallery% 15 Achievement% 15 Wizard Run 0 Options --------- ASCII 0 Keyboard 1 Movement Vi Keybinds 0 Fullscreen 1 Font 18/Terminus Map View 76x50 Tactical HUD 1 Map Filters NONE Filters NONE Steam 1 RUN: f9c20089-27c9-4285-a0b3-4bc6243e80f6